[Event "Titled Tuesday Blitz June 21 Late 2022"]
[White "Khismatullin, Denis"]
[Black "Dardha, Daniel"]
[WhiteFideId "4142578"]
[BlackFideId "240990"]
[WhiteElo "2543"]
[BlackElo "2482"]
[Result "1/2-1/2"]
[Round "05"]
[TimeControl "180+1"]
[Date "2022.06.21"]
[WhiteClock "0:00:10"]
[BlackClock "0:00:09"]

1. Nf3 {[%clk 0:02:53]}  d5 {[%clk 0:02:57]} 2. e3 {[%clk 0:02:53]}  c6 {[%clk 0:02:56]} 3. c4 {[%clk 0:02:54]}  Nf6 {[%clk 0:02:55]} 4. Nc3 {[%clk 0:02:54]}  e6 {[%clk 0:02:53]} 5. b3 {[%clk 0:02:54]}  Bd6 {[%clk 0:02:52]} 6. Bb2 {[%clk 0:02:55]}  O-O {[%clk 0:02:48]} 7. Be2 {[%clk 0:02:54]}  e5 {[%clk 0:02:46]} 8. cxd5 {[%clk 0:02:55]}  cxd5 {[%clk 0:02:43]} 9. Nb5 {[%clk 0:02:55]}  Nc6 {[%clk 0:02:42]} 10. Nxd6 {[%clk 0:02:54]}  Qxd6 {[%clk 0:02:41]} 11. d4 {[%clk 0:02:53]}  e4 {[%clk 0:02:40]} 12. Ne5 {[%clk 0:02:54]}  Nd7 {[%clk 0:02:40]} 13. Nxc6 {[%clk 0:02:49]}  bxc6 {[%clk 0:02:39]} 14. Rc1 {[%clk 0:02:38]}  Re8 {[%clk 0:02:38]} 15. Qc2 {[%clk 0:02:36]}  Re6 {[%clk 0:02:35]} 16. h4 {[%clk 0:02:33]}  Nf8 {[%clk 0:02:34]} 17. Qc5 {[%clk 0:02:29]}  Qd8 {[%clk 0:02:30]} 18. Ba3 {[%clk 0:02:29]}  Nd7 {[%clk 0:02:02]} 19. Qc3 {[%clk 0:02:25]}  Nf6 {[%clk 0:01:59]} 20. g4 {[%clk 0:02:22]}  h6 {[%clk 0:01:41]} 21. g5 {[%clk 0:02:18]}  hxg5 {[%clk 0:01:40]} 22. hxg5 {[%clk 0:02:19]}  Nh7 {[%clk 0:01:40]} 23. Kd2 {[%clk 0:02:19]}  Nxg5 {[%clk 0:01:38]} 24. Rh5 {[%clk 0:02:15]}  g6 {[%clk 0:01:13]} 25. Rh6 {[%clk 0:02:12]}  Qf6 {[%clk 0:00:57]} 26. Qc5 {[%clk 0:01:05]}  Bd7 {[%clk 0:00:54]} 27. Rch1 {[%clk 0:01:03]}  Kg7 {[%clk 0:00:53]} 28. R1h2 {[%clk 0:01:01]}  Ree8 {[%clk 0:00:42]} 29. Ke1 {[%clk 0:00:56]}  a5 {[%clk 0:00:36]} 30. Qd6 {[%clk 0:00:52]}  Qxd6 {[%clk 0:00:35]} 31. Bxd6 {[%clk 0:00:53]}  f6 {[%clk 0:00:34]} 32. Bf4 {[%clk 0:00:49]}  Nf7 {[%clk 0:00:32]} 33. Rh7+ {[%clk 0:00:49]}  Kg8 {[%clk 0:00:32]} 34. Kd2 {[%clk 0:00:47]}  Bf5 {[%clk 0:00:32]} 35. Bg3 {[%clk 0:00:46]}  g5 {[%clk 0:00:30]} 36. R7h5 {[%clk 0:00:45]}  Kg7 {[%clk 0:00:29]} 37. Kc3 {[%clk 0:00:42]}  a4 {[%clk 0:00:28]} 38. b4 {[%clk 0:00:42]}  Bg6 {[%clk 0:00:24]} 39. R5h3 {[%clk 0:00:41]}  Bf5 {[%clk 0:00:23]} 40. Rh5 {[%clk 0:00:42]}  Bg6 {[%clk 0:00:23]} 41. R5h3 {[%clk 0:00:42]}  a3 {[%clk 0:00:21]} 42. Rh1 {[%clk 0:00:42]}  Bf5 {[%clk 0:00:21]} 43. Rh5 {[%clk 0:00:41]}  Bg6 {[%clk 0:00:20]} 44. R5h2 {[%clk 0:00:41]}  Red8 {[%clk 0:00:20]} 45. Bg4 {[%clk 0:00:40]}  Nd6 {[%clk 0:00:19]} 46. Be6 {[%clk 0:00:32]}  Nb5+ {[%clk 0:00:18]} 47. Kb3 {[%clk 0:00:33]}  Ra7 {[%clk 0:00:17]} 48. Bg4 {[%clk 0:00:30]}  Nd6 {[%clk 0:00:13]} 49. Be2 {[%clk 0:00:19]}  Nf5 {[%clk 0:00:12]} 50. Rc1 {[%clk 0:00:17]}  Nxg3 {[%clk 0:00:12]} 51. fxg3 {[%clk 0:00:18]}  Be8 {[%clk 0:00:11]} 52. Bg4 {[%clk 0:00:17]}  Rb7 {[%clk 0:00:10]} 53. Bf5 {[%clk 0:00:17]}  Bg6 {[%clk 0:00:08]} 54. Bxg6 {[%clk 0:00:13]}  Kxg6 {[%clk 0:00:09]} 55. Kxa3 {[%clk 0:00:12]}  Rdb8 {[%clk 0:00:10]} 56. Rb2 {[%clk 0:00:12]}  Ra8+ {[%clk 0:00:10]} 57. Kb3 {[%clk 0:00:12]}  Rab8 {[%clk 0:00:10]} 58. a3 {[%clk 0:00:13]}  Rb6 {[%clk 0:00:10]} 59. Rbc2 {[%clk 0:00:13]}  Rc8 {[%clk 0:00:09]} 60. Rc5 {[%clk 0:00:13]}  Kf5 {[%clk 0:00:09]} 61. b5 {[%clk 0:00:13]}  Rcb8 {[%clk 0:00:08]} 62. a4 {[%clk 0:00:13]}  cxb5 {[%clk 0:00:08]} 63. a5 {[%clk 0:00:14]}  Rd6 {[%clk 0:00:08]} 64. Kb4 {[%clk 0:00:12]}  Kg4 {[%clk 0:00:08]} 65. Rc6 {[%clk 0:00:12]}  Rxc6 {[%clk 0:00:08]} 66. Rxc6 {[%clk 0:00:13]}  f5 {[%clk 0:00:08]} 67. a6 {[%clk 0:00:10]}  Kxg3 {[%clk 0:00:07]} 68. Rc5 {[%clk 0:00:07]}  f4 {[%clk 0:00:07]} 69. Rxd5 {[%clk 0:00:08]}  fxe3 {[%clk 0:00:07]} 70. Rxg5+ {[%clk 0:00:08]}  Kf3 {[%clk 0:00:07]} 71. Rf5+ {[%clk 0:00:07]}  Kg4 {[%clk 0:00:06]} 72. Rf1 {[%clk 0:00:02]}  e2 {[%clk 0:00:06]} 73. Ra1 {[%clk 0:00:02]}  Kf3 {[%clk 0:00:06]} 74. d5 {[%clk 0:00:02]}  Kf2 {[%clk 0:00:06]} 75. a7 {[%clk 0:00:02]}  Ra8 {[%clk 0:00:06]} 76. d6 {[%clk 0:00:03]}  e1=Q+ {[%clk 0:00:06]} 77. Rxe1 {[%clk 0:00:03]}  Kxe1 {[%clk 0:00:07]} 78. d7 {[%clk 0:00:03]}  e3 {[%clk 0:00:07]} 79. Kxb5 {[%clk 0:00:04]}  e2 {[%clk 0:00:08]} 80. Kc6 {[%clk 0:00:04]}  Kf2 {[%clk 0:00:08]} 81. Kb7 {[%clk 0:00:05]}  Rd8 {[%clk 0:00:08]} 82. a8=Q {[%clk 0:00:05]}  Rxa8 {[%clk 0:00:08]} 83. Kxa8 {[%clk 0:00:06]}  e1=Q {[%clk 0:00:08]} 84. d8=Q {[%clk 0:00:06]}  Qa1+ {[%clk 0:00:09]} 85. Kb8 {[%clk 0:00:07]}  Qb2+ {[%clk 0:00:09]} 86. Kc8 {[%clk 0:00:08]}  Qc3+ {[%clk 0:00:10]} 87. Qc7 {[%clk 0:00:09]}  Qxc7+ {[%clk 0:00:09]} 88. Kxc7 {[%clk 0:00:10]} 1/2-1/2


[Site "https://www.chess.com"]

[Event "Titled Tuesday Blitz June 21 Late 2022"]
[White "Koc, Przemyslaw"]
[Black "Aldokhin, Ivan"]
[WhiteFideId "1109081"]
[BlackFideId "24115720"]
[WhiteElo "2482"]
[BlackElo "2610"]
[Result "1-0"]
[Round "05"]
[TimeControl "180+1"]
[Date "2022.06.22"]
[WhiteClock "0:01:15"]
[BlackClock "0:00:08"]

1. d4 {[%clk 0:03:00]}  d5 {[%clk 0:02:53]} 2. Nf3 {[%clk 0:03:00]}  Nf6 {[%clk 0:02:52]} 3. c3 {[%clk 0:03:00]}  Bf5 {[%clk 0:02:46]} 4. Qb3 {[%clk 0:03:00]}  Qc8 {[%clk 0:02:37]} 5. Bg5 {[%clk 0:02:59]}  e6 {[%clk 0:02:36]} 6. Nbd2 {[%clk 0:02:59]}  Be7 {[%clk 0:02:29]} 7. e3 {[%clk 0:02:56]}  Nbd7 {[%clk 0:02:27]} 8. Nh4 {[%clk 0:02:55]}  Bg6 {[%clk 0:02:25]} 9. Nxg6 {[%clk 0:02:55]}  hxg6 {[%clk 0:02:25]} 10. Bd3 {[%clk 0:02:55]}  c5 {[%clk 0:02:23]} 11. Qd1 {[%clk 0:02:46]}  e5 {[%clk 0:02:16]} 12. dxe5 {[%clk 0:02:45]}  Nxe5 {[%clk 0:02:14]} 13. Bb5+ {[%clk 0:02:46]}  Kf8 {[%clk 0:02:14]} 14. Nf3 {[%clk 0:02:42]}  Nxf3+ {[%clk 0:02:07]} 15. Qxf3 {[%clk 0:02:42]}  a6 {[%clk 0:02:03]} 16. Be2 {[%clk 0:02:38]}  Qe6 {[%clk 0:02:01]} 17. O-O-O {[%clk 0:02:32]}  Rd8 {[%clk 0:01:47]} 18. Kb1 {[%clk 0:02:29]}  b5 {[%clk 0:01:46]} 19. h3 {[%clk 0:02:16]}  Ne4 {[%clk 0:01:45]} 20. Bxe7+ {[%clk 0:02:15]}  Kxe7 {[%clk 0:01:34]} 21. Bd3 {[%clk 0:02:16]}  f5 {[%clk 0:01:29]} 22. Bxe4 {[%clk 0:02:13]}  dxe4 {[%clk 0:01:21]} 23. Qf4 {[%clk 0:02:11]}  c4 {[%clk 0:00:52]} 24. Qc7+ {[%clk 0:02:06]}  Rd7 {[%clk 0:00:50]} 25. Rxd7+ {[%clk 0:01:56]}  Qxd7 {[%clk 0:00:50]} 26. Qxd7+ {[%clk 0:01:54]}  Kxd7 {[%clk 0:00:50]} 27. Rd1+ {[%clk 0:01:55]}  Ke6 {[%clk 0:00:47]} 28. Rd4 {[%clk 0:01:53]}  g5 {[%clk 0:00:40]} 29. a4 {[%clk 0:01:53]}  Rc8 {[%clk 0:00:35]} 30. Ka2 {[%clk 0:01:50]}  g6 {[%clk 0:00:27]} 31. Ka3 {[%clk 0:01:46]}  Rc5 {[%clk 0:00:20]} 32. Kb4 {[%clk 0:01:45]}  Re5 {[%clk 0:00:18]} 33. Rd8 {[%clk 0:01:39]}  bxa4 {[%clk 0:00:14]} 34. Re8+ {[%clk 0:01:33]}  Kd5 {[%clk 0:00:14]} 35. Rxe5+ {[%clk 0:01:33]}  Kxe5 {[%clk 0:00:15]} 36. Kxc4 {[%clk 0:01:34]}  g4 {[%clk 0:00:08]} 37. hxg4 {[%clk 0:01:32]}  f4 {[%clk 0:00:06]} 38. exf4+ {[%clk 0:01:18]}  Kxf4 {[%clk 0:00:06]} 39. Kd4 {[%clk 0:01:19]}  g5 {[%clk 0:00:03]} 40. c4 {[%clk 0:01:18]}  e3 {[%clk 0:00:03]} 41. fxe3+ {[%clk 0:01:17]}  Kxg4 {[%clk 0:00:03]} 42. e4 {[%clk 0:01:15]}  Kg3 {[%clk 0:00:04]} 43. e5 {[%clk 0:01:15]}  Kxg2 {[%clk 0:00:05]} 44. e6 {[%clk 0:01:15]}  g4 {[%clk 0:00:06]} 45. e7 {[%clk 0:01:15]}  g3 {[%clk 0:00:06]} 46. e8=Q {[%clk 0:01:16]}  Kh2 {[%clk 0:00:07]} 47. Qh5+ {[%clk 0:01:16]}  Kg1 {[%clk 0:00:07]} 48. c5 {[%clk 0:01:16]}  g2 {[%clk 0:00:08]} 49. c6 {[%clk 0:01:15]}  Kf1 {[%clk 0:00:08]} 50. Qf3+ {[%clk 0:01:15]} 1-0


[Site "https://www.chess.com"]

[Event "Titled Tuesday Blitz June 21 Late 2022"]
[White "Koellner, Ruben Gideon"]
[Black "Prydun, Andriy"]
[WhiteFideId "12993093"]
[BlackFideId "14145898"]
[WhiteElo "2547"]
[BlackElo "2063"]
[Result "1-0"]
[Round "05"]
[TimeControl "180+1"]
[Date "2022.06.22"]
[WhiteClock "0:01:31"]
[BlackClock "0:00:04"]

1. d4 {[%clk 0:03:00]}  Nf6 {[%clk 0:02:57]} 2. Bg5 {[%clk 0:02:59]}  Ne4 {[%clk 0:02:44]} 3. Bf4 {[%clk 0:02:59]}  d5 {[%clk 0:02:44]} 4. e3 {[%clk 0:02:59]}  c6 {[%clk 0:02:40]} 5. Bd3 {[%clk 0:02:59]}  Nd6 {[%clk 0:02:35]} 6. Nd2 {[%clk 0:02:56]}  Bf5 {[%clk 0:02:27]} 7. Bxd6 {[%clk 0:02:52]}  Bxd3 {[%clk 0:02:26]} 8. Bxb8 {[%clk 0:02:52]}  Ba6 {[%clk 0:02:09]} 9. Bg3 {[%clk 0:02:50]}  e6 {[%clk 0:02:08]} 10. Ne2 {[%clk 0:02:49]}  Be7 {[%clk 0:02:02]} 11. O-O {[%clk 0:02:49]}  Qb6 {[%clk 0:01:56]} 12. b3 {[%clk 0:02:46]}  h5 {[%clk 0:01:53]} 13. h3 {[%clk 0:02:44]}  g5 {[%clk 0:01:52]} 14. c4 {[%clk 0:02:43]}  O-O-O {[%clk 0:01:47]} 15. Qc2 {[%clk 0:02:37]}  Rdg8 {[%clk 0:01:39]} 16. a4 {[%clk 0:02:30]}  h4 {[%clk 0:01:36]} 17. Bh2 {[%clk 0:02:26]}  g4 {[%clk 0:01:36]} 18. hxg4 {[%clk 0:02:25]}  Rxg4 {[%clk 0:01:35]} 19. Kh1 {[%clk 0:02:10]}  Qd8 {[%clk 0:01:34]} 20. Bf4 {[%clk 0:01:50]}  Qg8 {[%clk 0:01:13]} 21. Rg1 {[%clk 0:01:49]}  Bb4 {[%clk 0:01:02]} 22. Nf3 {[%clk 0:01:48]}  f6 {[%clk 0:00:59]} 23. Rab1 {[%clk 0:01:44]}  Kd7 {[%clk 0:00:39]} 24. Nc1 {[%clk 0:01:42]}  Bd6 {[%clk 0:00:25]} 25. Bxd6 {[%clk 0:01:41]}  Kxd6 {[%clk 0:00:26]} 26. Nd3 {[%clk 0:01:41]}  Re4 {[%clk 0:00:13]} 27. Nc5 {[%clk 0:01:39]}  f5 {[%clk 0:00:10]} 28. Nxe4+ {[%clk 0:01:35]}  fxe4 {[%clk 0:00:09]} 29. Ne5 {[%clk 0:01:36]}  Qg3 {[%clk 0:00:08]} 30. Nf7+ {[%clk 0:01:31]}  Ke7 {[%clk 0:00:04]} 31. fxg3 {[%clk 0:01:31]} 1-0


[Site "https://www.chess.com"]

[Event "Titled Tuesday Blitz June 21 Late 2022"]
[White "Kovacevic, Radmila"]
[Black "Taboas Rodriguez, Daniel"]
[WhiteFideId "933171"]
[BlackFideId "2208466"]
[WhiteElo "2115"]
[BlackElo "2429"]
[Result "0-1"]
[Round "05"]
[TimeControl "180+1"]
[Date "2022.06.22"]
[WhiteClock "0:00:02"]
[BlackClock "0:00:12"]

1. e4 {[%clk 0:03:00]}  e6 {[%clk 0:02:07]} 2. d4 {[%clk 0:03:00]}  d5 {[%clk 0:02:07]} 3. Nc3 {[%clk 0:02:59]}  Nc6 {[%clk 0:02:08]} 4. Nf3 {[%clk 0:02:59]}  Nf6 {[%clk 0:02:07]} 5. Bd3 {[%clk 0:02:57]}  Nb4 {[%clk 0:02:06]} 6. e5 {[%clk 0:02:56]}  Nd7 {[%clk 0:02:06]} 7. Be2 {[%clk 0:02:55]}  c5 {[%clk 0:02:06]} 8. a3 {[%clk 0:02:52]}  Nc6 {[%clk 0:02:06]} 9. dxc5 {[%clk 0:02:48]}  Bxc5 {[%clk 0:02:06]} 10. b4 {[%clk 0:02:47]}  Bb6 {[%clk 0:02:02]} 11. Bf4 {[%clk 0:02:44]}  O-O {[%clk 0:02:02]} 12. O-O {[%clk 0:02:24]}  f6 {[%clk 0:02:00]} 13. exf6 {[%clk 0:02:21]}  Qxf6 {[%clk 0:01:57]} 14. Bd6 {[%clk 0:02:14]}  Re8 {[%clk 0:01:52]} 15. Nb5 {[%clk 0:02:10]}  Nde5 {[%clk 0:01:42]} 16. Nxe5 {[%clk 0:01:41]}  Nxe5 {[%clk 0:01:43]} 17. Kh1 {[%clk 0:01:28]}  Nf7 {[%clk 0:01:38]} 18. Bc7 {[%clk 0:01:18]}  Rf8 {[%clk 0:00:58]} 19. c4 {[%clk 0:01:09]}  Bd7 {[%clk 0:00:43]} 20. Bxb6 {[%clk 0:01:04]}  Bxb5 {[%clk 0:00:43]} 21. Bc5 {[%clk 0:01:02]}  Bxc4 {[%clk 0:00:38]} 22. Bxc4 {[%clk 0:01:00]}  dxc4 {[%clk 0:00:37]} 23. Bxf8 {[%clk 0:00:58]}  Rxf8 {[%clk 0:00:38]} 24. Qd7 {[%clk 0:00:58]}  Ne5 {[%clk 0:00:33]} 25. Qxb7 {[%clk 0:00:58]}  Ng4 {[%clk 0:00:33]} 26. f3 {[%clk 0:00:39]}  Nf2+ {[%clk 0:00:24]} 27. Kg1 {[%clk 0:00:39]}  Qd4 {[%clk 0:00:20]} 28. Rxf2 {[%clk 0:00:19]}  Qxa1+ {[%clk 0:00:19]} 29. Rf1 {[%clk 0:00:19]}  Qd4+ {[%clk 0:00:18]} 30. Kh1 {[%clk 0:00:19]}  c3 {[%clk 0:00:17]} 31. Qc6 {[%clk 0:00:20]}  Rd8 {[%clk 0:00:16]} 32. Qxe6+ {[%clk 0:00:20]}  Kh8 {[%clk 0:00:16]} 33. Re1 {[%clk 0:00:20]}  h6 {[%clk 0:00:15]} 34. h3 {[%clk 0:00:19]}  c2 {[%clk 0:00:15]} 35. Qe7 {[%clk 0:00:13]}  Qd1 {[%clk 0:00:13]} 36. Kh2 {[%clk 0:00:12]}  c1=Q {[%clk 0:00:12]} 37. Qxd8+ {[%clk 0:00:09]}  Qxd8 {[%clk 0:00:13]} 38. Rxc1 {[%clk 0:00:10]}  Qd6+ {[%clk 0:00:13]} 39. Kh1 {[%clk 0:00:09]}  Qd3 {[%clk 0:00:13]} 40. a4 {[%clk 0:00:06]}  Qa3 {[%clk 0:00:12]} 41. Rc8+ {[%clk 0:00:02]}  Kh7 {[%clk 0:00:12]} 42. Rc7 {[%clk 0:00:02]}  Qa1+ {[%clk 0:00:12]} 0-1


[Site "https://www.chess.com"]

[Event "Titled Tuesday Blitz June 21 Late 2022"]
[White "Koziorowicz, Michal"]
[Black "Pakleza, Zbigniew"]
[WhiteFideId "21809194"]
[BlackFideId "1119290"]
[WhiteElo "2202"]
[BlackElo "2467"]
[Result "1-0"]
[Round "05"]
[TimeControl "180+1"]
[Date "2022.06.21"]
[WhiteClock "0:00:36"]
[BlackClock "0:00:01"]

1. e4 {[%clk 0:03:00]}  d6 {[%clk 0:03:00]} 2. d4 {[%clk 0:03:01]}  Nf6 {[%clk 0:03:00]} 3. Nc3 {[%clk 0:03:01]}  c6 {[%clk 0:03:01]} 4. Be3 {[%clk 0:03:01]}  Qb6 {[%clk 0:03:01]} 5. Qd2 {[%clk 0:02:54]}  Qxb2 {[%clk 0:03:01]} 6. Rb1 {[%clk 0:02:54]}  Qa3 {[%clk 0:03:01]} 7. f3 {[%clk 0:02:52]}  e6 {[%clk 0:02:58]} 8. g4 {[%clk 0:02:47]}  d5 {[%clk 0:02:56]} 9. e5 {[%clk 0:02:46]}  Nfd7 {[%clk 0:02:55]} 10. Nge2 {[%clk 0:02:25]}  a6 {[%clk 0:02:53]} 11. f4 {[%clk 0:02:18]}  b5 {[%clk 0:02:30]} 12. Rb3 {[%clk 0:02:00]}  Qa5 {[%clk 0:02:28]} 13. f5 {[%clk 0:01:58]}  Nb6 {[%clk 0:02:27]} 14. Nf4 {[%clk 0:01:57]}  exf5 {[%clk 0:02:19]} 15. gxf5 {[%clk 0:01:58]}  Bxf5 {[%clk 0:02:19]} 16. Bd3 {[%clk 0:01:55]}  Nc4 {[%clk 0:02:14]} 17. Bxc4 {[%clk 0:01:54]}  bxc4 {[%clk 0:01:59]} 18. Rb1 {[%clk 0:01:31]}  Bb4 {[%clk 0:01:55]} 19. Nfe2 {[%clk 0:01:31]}  Nd7 {[%clk 0:01:53]} 20. O-O {[%clk 0:01:30]}  Bg6 {[%clk 0:01:49]} 21. a3 {[%clk 0:01:04]}  Bxc3 {[%clk 0:01:34]} 22. Nxc3 {[%clk 0:01:04]}  O-O {[%clk 0:01:34]} 23. Rb7 {[%clk 0:01:02]}  Rad8 {[%clk 0:01:13]} 24. Bg5 {[%clk 0:01:01]}  f6 {[%clk 0:01:14]} 25. Bh4 {[%clk 0:00:53]}  Rfe8 {[%clk 0:00:55]} 26. exf6 {[%clk 0:00:52]}  gxf6 {[%clk 0:00:36]} 27. Rxf6 {[%clk 0:00:51]}  Nxf6 {[%clk 0:00:15]} 28. Bxf6 {[%clk 0:00:52]}  Rb8 {[%clk 0:00:08]} 29. Rg7+ {[%clk 0:00:34]}  Kf8 {[%clk 0:00:09]} 30. Qh6 {[%clk 0:00:35]}  Rb1+ {[%clk 0:00:04]} 31. Kg2 {[%clk 0:00:35]}  Qxc3 {[%clk 0:00:02]} 32. Re7+ {[%clk 0:00:35]}  Kg8 {[%clk 0:00:01]} 33. Qg7# {[%clk 0:00:36]} 1-0


[Site "https://www.chess.com"]

[Event "Titled Tuesday Blitz June 21 Late 2022"]
[White "Kravtsiv, Martyn"]
[Black "Ambartsumova, Karina"]
[WhiteFideId "14113147"]
[BlackFideId "4166299"]
[WhiteElo "2694"]
[BlackElo "2262"]
[Result "1-0"]
[Round "05"]
[TimeControl "180+1"]
[Date "2022.06.21"]
[WhiteClock "0:00:09"]
[BlackClock "0:00:07"]

1. e4 {[%clk 0:02:51]}  c5 {[%clk 0:01:01]} 2. Nf3 {[%clk 0:02:49]}  e6 {[%clk 0:01:02]} 3. d4 {[%clk 0:02:48]}  cxd4 {[%clk 0:01:02]} 4. Nxd4 {[%clk 0:02:48]}  a6 {[%clk 0:01:03]} 5. c4 {[%clk 0:02:48]}  Nf6 {[%clk 0:01:03]} 6. Bd3 {[%clk 0:02:47]}  Qc7 {[%clk 0:01:03]} 7. O-O {[%clk 0:02:46]}  Be7 {[%clk 0:01:03]} 8. Nc3 {[%clk 0:02:46]}  d6 {[%clk 0:01:04]} 9. b3 {[%clk 0:02:45]}  O-O {[%clk 0:01:04]} 10. Bb2 {[%clk 0:02:45]}  b6 {[%clk 0:01:05]} 11. Rc1 {[%clk 0:02:44]}  Bb7 {[%clk 0:01:06]} 12. g4 {[%clk 0:02:40]}  Nfd7 {[%clk 0:01:02]} 13. Bb1 {[%clk 0:02:38]}  Qd8 {[%clk 0:00:51]} 14. Qc2 {[%clk 0:02:34]}  Nc6 {[%clk 0:00:46]} 15. Nce2 {[%clk 0:02:31]}  Nxd4 {[%clk 0:00:43]} 16. Nxd4 {[%clk 0:02:30]}  Rc8 {[%clk 0:00:42]} 17. Rcd1 {[%clk 0:02:23]}  g6 {[%clk 0:00:38]} 18. Qe2 {[%clk 0:02:18]}  Bf6 {[%clk 0:00:36]} 19. Nf3 {[%clk 0:01:49]}  Qe7 {[%clk 0:00:32]} 20. h3 {[%clk 0:01:45]}  Rfd8 {[%clk 0:00:31]} 21. Bc1 {[%clk 0:01:23]}  Bg7 {[%clk 0:00:30]} 22. Bg5 {[%clk 0:01:21]}  Bf6 {[%clk 0:00:27]} 23. Bf4 {[%clk 0:01:18]}  e5 {[%clk 0:00:22]} 24. Be3 {[%clk 0:01:12]}  Nc5 {[%clk 0:00:22]} 25. Nd2 {[%clk 0:01:11]}  Bg5 {[%clk 0:00:21]} 26. Nf3 {[%clk 0:00:58]}  Bxe3 {[%clk 0:00:21]} 27. Qxe3 {[%clk 0:00:59]}  Qc7 {[%clk 0:00:20]} 28. Nd2 {[%clk 0:00:47]}  Ne6 {[%clk 0:00:20]} 29. Nf3 {[%clk 0:00:42]}  Nf4 {[%clk 0:00:21]} 30. Nh4 {[%clk 0:00:39]}  Qc5 {[%clk 0:00:20]} 31. Kh2 {[%clk 0:00:36]}  a5 {[%clk 0:00:17]} 32. Rd2 {[%clk 0:00:34]}  Bc6 {[%clk 0:00:15]} 33. Rfd1 {[%clk 0:00:31]}  a4 {[%clk 0:00:13]} 34. Qxc5 {[%clk 0:00:29]}  bxc5 {[%clk 0:00:14]} 35. Rxd6 {[%clk 0:00:29]}  Rxd6 {[%clk 0:00:14]} 36. Rxd6 {[%clk 0:00:29]}  axb3 {[%clk 0:00:15]} 37. axb3 {[%clk 0:00:29]}  Kg7 {[%clk 0:00:15]} 38. Ng2 {[%clk 0:00:29]}  Ne2 {[%clk 0:00:15]} 39. f4 {[%clk 0:00:15]}  exf4 {[%clk 0:00:13]} 40. Bd3 {[%clk 0:00:16]}  f3 {[%clk 0:00:13]} 41. Bxe2 {[%clk 0:00:14]}  fxe2 {[%clk 0:00:12]} 42. Rd2 {[%clk 0:00:14]}  Bxe4 {[%clk 0:00:09]} 43. Rxe2 {[%clk 0:00:15]}  Bc6 {[%clk 0:00:08]} 44. Nf4 {[%clk 0:00:14]}  Rb8 {[%clk 0:00:08]} 45. Re3 {[%clk 0:00:14]}  h6 {[%clk 0:00:07]} 46. Kg3 {[%clk 0:00:14]}  Rd8 {[%clk 0:00:06]} 47. Nd3 {[%clk 0:00:14]}  Rc8 {[%clk 0:00:03]} 48. Nxc5 {[%clk 0:00:13]}  h5 {[%clk 0:00:03]} 49. Nd3 {[%clk 0:00:12]}  hxg4 {[%clk 0:00:03]} 50. hxg4 {[%clk 0:00:12]}  Rb8 {[%clk 0:00:03]} 51. Ne5 {[%clk 0:00:11]}  Be8 {[%clk 0:00:03]} 52. Rc3 {[%clk 0:00:11]}  f6 {[%clk 0:00:03]} 53. Nf3 {[%clk 0:00:11]}  Bc6 {[%clk 0:00:04]} 54. Nd4 {[%clk 0:00:11]}  Be4 {[%clk 0:00:04]} 55. c5 {[%clk 0:00:11]}  f5 {[%clk 0:00:04]} 56. c6 {[%clk 0:00:11]}  Kf6 {[%clk 0:00:04]} 57. c7 {[%clk 0:00:08]}  Rc8 {[%clk 0:00:05]} 58. Nb5 {[%clk 0:00:09]}  Ke7 {[%clk 0:00:05]} 59. Na7 {[%clk 0:00:08]}  Kd7 {[%clk 0:00:05]} 60. Nxc8 {[%clk 0:00:08]}  Kxc8 {[%clk 0:00:06]} 61. Kf4 {[%clk 0:00:08]}  Bb7 {[%clk 0:00:05]} 62. g5 {[%clk 0:00:08]}  Be4 {[%clk 0:00:04]} 63. b4 {[%clk 0:00:08]}  Bg2 {[%clk 0:00:05]} 64. b5 {[%clk 0:00:08]}  Be4 {[%clk 0:00:06]} 65. b6 {[%clk 0:00:08]}  Bb7 {[%clk 0:00:06]} 66. Re3 {[%clk 0:00:08]}  Be4 {[%clk 0:00:06]} 67. Rxe4 {[%clk 0:00:09]}  fxe4 {[%clk 0:00:07]} 68. Kxe4 {[%clk 0:00:09]} 1-0


[Site "https://www.chess.com"]

[Event "Titled Tuesday Blitz June 21 Late 2022"]
[White "Levine, Joseph"]
[Black "Deac, Bogdan-Daniel"]
[WhiteFideId "30940346"]
[BlackFideId "1226380"]
[WhiteElo "1802"]
[BlackElo "2648"]
[Result "0-1"]
[Round "05"]
[TimeControl "180+1"]
[Date "2022.06.21"]
[WhiteClock "0:00:03"]
[BlackClock "0:00:03"]

1. e4 {[%clk 0:03:00]}  c5 {[%clk 0:02:34]} 2. Nf3 {[%clk 0:02:57]}  d6 {[%clk 0:02:34]} 3. d4 {[%clk 0:02:57]}  cxd4 {[%clk 0:02:35]} 4. Nxd4 {[%clk 0:02:57]}  Nf6 {[%clk 0:02:32]} 5. Nc3 {[%clk 0:02:57]}  a6 {[%clk 0:02:33]} 6. Bd3 {[%clk 0:02:57]}  g6 {[%clk 0:02:32]} 7. O-O {[%clk 0:02:56]}  Bg7 {[%clk 0:02:31]} 8. Be2 {[%clk 0:02:57]}  O-O {[%clk 0:02:29]} 9. Be3 {[%clk 0:02:57]}  b5 {[%clk 0:02:26]} 10. Bf3 {[%clk 0:02:57]}  e5 {[%clk 0:02:22]} 11. Nb3 {[%clk 0:02:56]}  Bb7 {[%clk 0:02:18]} 12. Qd3 {[%clk 0:02:54]}  Qc7 {[%clk 0:01:59]} 13. Rfd1 {[%clk 0:02:49]}  Rd8 {[%clk 0:01:59]} 14. Bg5 {[%clk 0:02:35]}  h6 {[%clk 0:01:27]} 15. Bxf6 {[%clk 0:02:25]}  Bxf6 {[%clk 0:01:28]} 16. Nd5 {[%clk 0:02:26]}  Bxd5 {[%clk 0:01:28]} 17. Qxd5 {[%clk 0:02:27]}  Nc6 {[%clk 0:01:28]} 18. c3 {[%clk 0:02:16]}  Ne7 {[%clk 0:01:23]} 19. Qd3 {[%clk 0:02:13]}  Rab8 {[%clk 0:01:21]} 20. Rac1 {[%clk 0:02:08]}  Bg5 {[%clk 0:01:15]} 21. Rc2 {[%clk 0:02:06]}  a5 {[%clk 0:01:16]} 22. g3 {[%clk 0:01:46]}  h5 {[%clk 0:01:14]} 23. h4 {[%clk 0:01:30]}  Bh6 {[%clk 0:01:14]} 24. Kg2 {[%clk 0:01:11]}  a4 {[%clk 0:01:11]} 25. Nd2 {[%clk 0:01:10]}  Kg7 {[%clk 0:01:10]} 26. Nf1 {[%clk 0:01:08]}  Ng8 {[%clk 0:01:08]} 27. Ne3 {[%clk 0:01:04]}  Bxe3 {[%clk 0:01:08]} 28. Qxe3 {[%clk 0:01:03]}  b4 {[%clk 0:01:07]} 29. Qd3 {[%clk 0:00:49]}  b3 {[%clk 0:00:52]} 30. axb3 {[%clk 0:00:48]}  Rxb3 {[%clk 0:00:52]} 31. Rcd2 {[%clk 0:00:46]}  a3 {[%clk 0:00:31]} 32. bxa3 {[%clk 0:00:43]}  Rxa3 {[%clk 0:00:29]} 33. Rc2 {[%clk 0:00:31]}  Nf6 {[%clk 0:00:28]} 34. Qd2 {[%clk 0:00:30]}  Qc5 {[%clk 0:00:15]} 35. Rdc1 {[%clk 0:00:22]}  d5 {[%clk 0:00:13]} 36. exd5 {[%clk 0:00:22]}  e4 {[%clk 0:00:13]} 37. Be2 {[%clk 0:00:18]}  Rxd5 {[%clk 0:00:09]} 38. Qe3 {[%clk 0:00:13]}  Qc6 {[%clk 0:00:06]} 39. c4 {[%clk 0:00:10]}  Rda5 {[%clk 0:00:03]} 40. Rc3 {[%clk 0:00:09]}  Ra2 {[%clk 0:00:03]} 41. R1c2 {[%clk 0:00:08]}  Ra1 {[%clk 0:00:04]} 42. c5 {[%clk 0:00:07]}  R5a4 {[%clk 0:00:03]} 43. Rc4 {[%clk 0:00:06]}  R4a3 {[%clk 0:00:02]} 44. R2c3 {[%clk 0:00:06]}  R3a2 {[%clk 0:00:02]} 45. Rc2 {[%clk 0:00:06]}  Ra8 {[%clk 0:00:02]} 46. Kh2 {[%clk 0:00:04]}  R1a3 {[%clk 0:00:03]} 47. R2c3 {[%clk 0:00:03]}  Ra1 {[%clk 0:00:04]} 48. Rc1 {[%clk 0:00:03]}  R1a7 {[%clk 0:00:03]} 49. Bf1 {[%clk 0:00:03]}  Ng4+ {[%clk 0:00:03]} 0-1


[Site "https://www.chess.com"]